bitfinex-derivatives/quotes_SOLF0:USTF0_20250709
["timestamp","ask_amount","ask_price","bid_price","bid_amount"]
[1752090967123,4.6673,157.18,157.01,10.43818455]
[1752090967325,554.4273,157.18,157.06,10.43818455]
[1752090967627,10.43818455,157.17,157.06,10.43818455]
[1752090968131,10.43818455,157.17,156.98,552.0694]
[1752090968324,554.4273,157.18,157.04,10.43818455]
[1752090968524,554.4273,157.18,157.07,10.43818455]
[1752090968725,554.4273,157.18,157.08,10.43818455]
[1752090968926,10.43818455,157.22,157.01,179.02]
[1752090969225,549.9,157.26,157.1,10.43818455]
[1752090969429,549.9,157.26,157.14,10.43818455]
[1752090969627,560.33818455,157.26,157.14,10.43818455]
[1752090969824,10.43818455,157.23,157.09,2.3615]
[1752090970027,10.43818455,157.22,157.1,10.43818455]
[1752090970229,278.8,157.27,157.1,10.43818455]
[1752090970425,10.43818455,157.22,157.11,62.0]
[1752090970625,10.43818455,157.22,157.09,12.79968455]
[1752090970829,10.43818455,157.19,157.09,2.3615]
[1752090971532,10.43818455,157.19,157.08,10.43818455]
[1752090971533,6.3626,157.13,157.02,2.3556]
[1752090971732,10.43818455,157.19,157.07,10.43818455]
[1752090972335,279.90741619,157.27,157.07,10.43818455]
[1752090972533,10.43818455,157.19,157.09,10.43818455]
[1752090972729,10.43818455,157.21,157.09,10.43818455]
[1752090972924,10.43818455,157.21,157.11,10.43818455]
[1752090973431,10.43818455,157.21,157.09,10.43818455]
[1752090973624,10.43818455,157.21,157.1,62.0]
[1752090974023,10.43818455,157.19,157.09,10.43818455]
[1752090974427,10.43818455,157.19,157.09,16.80228455]
[1752090974629,10.43818455,157.19,157.09,10.43818455]
[1752090974833,10.43818455,157.19,157.06,10.43818455]
[1752090975232,10.43818455,157.15,157.03,2.3615]
[1752090975423,4.3873,157.18,157.03,12.79968455]
[1752090975629,6.3638,157.1,157.05,6.3657]
[1752090975828,10.43818455,157.16,157.03,12.79968455]
[1752090976330,4.3873,157.18,157.03,2.3615]
[1752090976535,6.3643,157.09,157.06,10.43818455]
[1752090976731,10.43818455,157.14,157.03,2.3615]
[1752090976932,10.43818455,157.14,157.03,64.3615]
[1752090977125,10.43818455,157.11,157.03,2.3615]
[1752090977326,10.43818455,157.11,157.0,0.40735]
[1752090977630,6.3663,157.04,157.0,0.40735]
[1752090977932,10.43818455,157.09,157.0,0.40735]
[1752090978133,6.3661,157.05,157.0,6.77485]
[1752090978331,277.8,157.17,157.01,10.43818455]
[1752090978530,10.43818455,157.15,157.04,10.43818455]
[1752090979126,10.43818455,157.15,157.04,16.80428455]
[1752090979327,10.43818455,157.17,157.04,10.43818455]
[1752090979535,10.43818455,157.17,157.07,10.43818455]
[1752090979837,4.3873,157.18,157.07,10.43818455]
[1752090980037,12.38131083,157.18,157.07,10.43818455]
[1752090980236,16.60970105,157.17,157.1,10.43818455]
[1752090980534,7.99401083,157.17,157.1,10.43818455]
[1752090980740,6.3616,157.16,157.11,6.3632]
[1752090980931,7.99401083,157.17,157.09,2.2888]
[1752090981133,8.61569022,157.12,157.07,10.43818455]
[1752090981438,7.99401083,157.11,157.08,6.3645]
[1752090981635,0.04661508,157.11,157.01,2.2291]
[1752090981836,0.04661508,157.11,157.03,10.43818455]
[1752090982030,10.43818455,157.13,157.03,10.43818455]
[1752090982232,18.50667629,157.12,157.01,2.2291]
[1752090982433,8.06849174,157.11,157.01,2.2291]
[1752090982635,8.06849174,157.1,157.03,6.3663]
[1752090982838,8.06849174,157.1,157.01,2.2291]
[1752090982839,10.43818455,157.1,157.01,2.2291]
[1752090983137,278.3495,157.11,157.0,0.40735]
[1752090983328,10.43818455,157.05,157.0,0.40735]
[1752090983528,278.3495,157.11,157.0,0.40735]
[1752090983728,10.43818455,157.06,157.0,0.40735]
[1752090983929,10.43818455,157.08,157.0,0.40735]
[1752090984434,10.43818455,157.08,156.96,11.37922178]
[1752090984435,2.3695,157.11,156.96,8.53441633]
[1752090984637,6.369,156.97,156.96,1.633e-05]
[1752090984841,10.44983654,157.08,156.89,11.37922178]
[1752090985029,10.44983654,157.08,156.9,14.14519357]
[1752090985231,10.44983654,157.02,156.91,11.37922178]
[1752090985434,10.44983654,157.03,156.9,15.07457881]
[1752090985635,10.44983654,157.04,156.91,21.82905832]
[1752090985942,10.44983654,157.03,156.91,10.44983654]
[1752090986142,280.4,157.1,156.93,11.37922178]
[1752090986342,10.44983654,157.05,156.93,11.37922178]
[1752090986642,10.44983654,157.03,156.92,11.37922178]
[1752090986844,10.44983654,157.05,156.94,10.44983654]
[1752090988142,10.44983654,157.05,156.93,2.1896]
[1752090988447,2.3695,157.11,156.93,2.1896]
[1752090988631,10.44983654,157.03,156.93,2.1896]
[1752090989036,10.44983654,157.07,156.95,10.44983654]
[1752090989239,8.61569022,157.16,156.97,10.4330439]
[1752090989437,10.4330439,157.17,157.05,10.4330439]
[1752090989737,10.80369022,157.2,156.97,560.3530439]
[1752090989939,10.80369022,157.2,156.97,560.33838065]
[1752090990145,6.3617,157.16,157.09,10.41838065]
[1752090990341,8.61569022,157.19,156.97,560.33838065]
[1752090990638,8.61569022,157.19,157.02,62.0]
[1752090990839,8.61569022,157.2,157.03,560.3629]
[1752090991045,8.61569022,157.21,157.04,2.3193]
[1752090991341,8.61569022,157.2,157.14,10.41838065]
[1752090991743,8.61569022,157.2,157.08,10.41838065]
[1752090991943,8.61569022,157.21,157.17,10.41838065]
[1752090993244,8.61569022,157.22,157.2,10.41838065]
[1752090993437,11.48758696,157.25,157.2,10.41838065]
[1752090993640,11.48758696,157.26,157.2,10.41838065]
[1752090993944,11.48758696,157.26,157.13,279.02]
[1752090993945,11.48758696,157.25,157.13,279.02]
[1752090994148,11.48758696,157.25,157.15,10.41838065]
[1752090994347,6.3594,157.21,157.16,6.361]
[1752090994550,11.48758696,157.24,157.14,72.41838065]
[1752090995045,6.3593,157.21,157.15,6.3616]
[1752090995251,13.66438696,157.25,157.14,62.0]
[1752090995445,12.59518065,157.25,157.14,72.41838065]
[1752090995950,2.1768,157.25,157.15,10.41838065]
[1752090996152,2.1768,157.25,157.18,10.41838065]
[1752090996342,2.1768,157.25,157.14,62.0]
[1752090996647,11.48758696,157.3,157.24,10.41838065]
[1752090996846,11.48758696,157.31,157.24,10.41838065]
[1752090997146,563.64718696,157.32,157.24,10.41838065]
[1752090997350,563.64718696,157.32,157.27,10.41838065]
[1752090997351,552.1596,157.32,157.27,10.41838065]
[1752090999046,13.62108696,157.36,157.27,10.41838065]
[1752090999252,13.62108696,157.36,157.2,2.2194]
[1752090999253,2.1335,157.36,157.3,10.41838065]
[1752090999753,2.1335,157.36,157.2,2.2194]
[1752090999954,6.3539,157.35,157.3,6.3556]
[1752091000154,6.3539,157.35,157.29,10.41838065]
[1752091000351,2.1335,157.36,157.29,10.41838065]
[1752091000645,6.354,157.34,157.29,10.41838065]
[1752091000849,2.1335,157.36,157.29,10.41838065]
[1752091001050,2.1622,157.38,157.29,10.41838065]
[1752091001257,2.1622,157.38,157.21,62.0]
[1752091001450,2.1622,157.38,157.29,10.41838065]
[1752091002044,6.354,157.35,157.29,10.41838065]
[1752091002244,2.1622,157.38,157.29,10.41838065]
[1752091002950,2.1622,157.38,157.28,10.41838065]
[1752091003446,10.41838065,157.35,157.24,10.41838065]
[1752091003645,10.41838065,157.35,157.21,62.0]
[1752091003846,10.41838065,157.32,157.2,2.2194]
[1752091004048,10.41838065,157.29,157.19,6.36]
[1752091004249,2.2909,157.28,157.16,10.41838065]
[1752091004454,2.3314307,157.28,157.16,10.41838065]
[1752091004649,2.3314307,157.28,157.19,10.41838065]
[1752091004855,2.2909,157.28,157.19,10.41838065]
[1752091005056,6.3563,157.29,157.24,6.3579]
[1752091005253,6.3563,157.29,157.22,10.41838065]
[1752091005458,2.3306,157.31,157.14,12.7237]
[1752091005660,2.3306,157.31,157.23,6.3583]
[1752091005859,2.3306,157.31,157.21,10.41838065]
[1752091006261,2.3306,157.31,157.25,6.3574]
[1752091006460,2.3306,157.31,157.21,10.41838065]
[1752091006657,2.2909,157.33,157.24,10.41838065]
[1752091006860,549.24,157.34,157.24,10.41838065]
[1752091007059,549.24,157.34,157.25,2.3377]
[1752091007260,10.41838065,157.38,157.27,10.41838065]
[1752091007663,10.41838065,157.38,157.25,2.3377]
[1752091007855,10.41838065,157.35,157.23,10.41838065]
[1752091008355,6.356,157.3,157.26,6.3571]
[1752091008556,10.41838065,157.35,157.23,10.41838065]
[1752091009462,6.3552,157.32,157.28,6.3562]
[1752091009855,10.41838065,157.35,157.2,2.1707]
[1752091010061,551.5306,157.4,157.25,10.41838065]
[1752091010359,10.41838065,157.36,157.25,10.41838065]
[1752091010665,6.3543,157.34,157.3,6.3556]
[1752091010859,3.9250095,157.33,157.28,10.41838065]
[1752091011055,3.92443999,157.39,157.28,10.41838065]
[1752091011258,3.92443999,157.38,157.28,10.41838065]
[1752091011454,3.92443999,157.37,157.28,10.41838065]
[1752091011661,6.3537,157.35,157.28,10.41838065]
[1752091011857,3.92443999,157.34,157.28,10.41838065]
[1752091012062,551.5306,157.4,157.28,10.41838065]
[1752091012260,3.92220864,157.39,157.28,10.41838065]
[1752091012471,3.92220864,157.38,157.21,62.0]
[1752091012671,6.3545,157.33,157.26,10.41838065]
[1752091013164,3.92220864,157.35,157.26,10.41838065]
[1752091013464,561.94898065,157.4,157.26,10.41838065]
[1752091013666,274.52049195,157.39,157.26,10.41838065]
[1752091013968,0.04400349,157.35,157.29,10.41838065]
[1752091014165,0.04400349,157.35,157.31,0.04326092]
[1752091014568,0.04400349,157.35,157.32,10.41838065]
[1752091014764,0.04400349,157.35,157.34,6.354]
[1752091015364,2.3503,157.41,157.38,6.3524]
[1752091015566,10.41838065,157.47,157.34,10.41838065]
[1752091015773,3.82748432,157.46,157.37,10.41838065]
[1752091015968,3.82748432,157.45,157.37,10.41838065]
[1752091016267,3.82748432,157.44,157.41,6.351]
[1752091016568,3.82748432,157.47,157.39,0.04356582]
[1752091016762,6.3497,157.45,157.41,6.3509]
[1752091016962,3.82748432,157.47,157.39,0.04356582]
[1752091017364,8.44178432,157.48,157.39,0.04356582]
[1752091017865,6.3492,157.46,157.39,0.04356582]
[1752091018061,6.3492,157.46,157.39,10.46194647]
[1752091018270,4.6143,157.48,157.39,10.46194647]
[1752091018768,4.6143,157.48,157.39,0.04356582]
[1752091018965,8.42255888,157.48,157.39,0.04356582]
[1752091019462,6.3497,157.45,157.41,6.3509]
[1752091019665,8.46534136,157.48,157.39,0.04356582]
[1752091019863,8.46534136,157.48,157.37,10.41838065]
[1752091020063,10.41838065,157.54,157.43,10.41838065]
[1752091020367,10.41838065,157.54,157.32,15.0189]
[1752091020368,10.41838065,157.5,157.42,0.04314378]
[1752091020565,10.41838065,157.44,157.32,2.3095]
[1752091020869,14.26894828,157.52,157.26,10.41838065]
[1752091020870,10.41838065,157.37,157.26,10.41838065]
[1752091021164,10.41838065,157.34,157.25,10.41838065]
[1752091021364,267.44,157.37,157.14,12.7242]
[1752091021565,10.41838065,157.31,157.2,10.41838065]
[1752091021867,270.5698,157.3,157.18,10.41838065]
[1752091022166,280.98818065,157.3,157.15,2.269]
[1752091022368,0.04218306,157.27,157.16,10.41838065]
[1752091022673,10.46056371,157.27,157.16,10.41838065]
[1752091022965,10.41838065,157.27,157.15,12.68738065]
[1752091023168,270.5698,157.3,157.12,10.41838065]
[1752091023169,3.85601389,157.28,157.12,10.41838065]
[1752091023474,10.41838065,157.26,157.12,10.41838065]
[1752091023771,0.04376937,157.22,157.12,10.41838065]
[1752091024063,6.3596,157.21,157.15,6.3616]
[1752091024268,10.46215002,157.22,157.15,10.41838065]
[1752091024269,0.04376937,157.22,157.15,10.41838065]
[1752091024469,0.04376937,157.22,157.09,2.269]
[1752091024668,0.04376937,157.22,157.19,10.41838065]
[1752091024861,10.41838065,157.29,157.18,10.41838065]
[1752091025063,6.3573,157.26,157.2,6.3596]
[1752091025268,10.41838065,157.28,157.17,10.41838065]
[1752091025463,0.04166491,157.25,157.17,10.41838065]
[1752091026167,0.04166491,157.25,157.17,72.41838065]
[1752091026673,0.04166491,157.25,157.18,10.41838065]
[1752091027469,0.04166491,157.25,157.17,62.0]
[1752091027670,0.04166491,157.25,157.19,10.41838065]
[1752091027865,0.04166491,157.25,157.23,6.3585]
[1752091028069,0.04166491,157.25,157.2,10.41838065]
[1752091028469,0.04166491,157.25,157.18,2.3334]
[1752091028470,0.04166491,157.25,157.23,6.3582]
[1752091028774,0.04166491,157.25,157.21,10.41838065]
[1752091029169,0.04166491,157.25,157.21,16.77738065]
[1752091029369,0.04166491,157.25,157.18,2.3334]
[1752091029570,0.04166491,157.25,157.18,12.75178065]
[1752091029770,0.04166491,157.25,157.21,10.41838065]
[1752091031071,0.04166491,157.25,157.19,10.41838065]
[1752091031567,0.04166491,157.25,157.18,2.3334]
[1752091031766,0.04166491,157.25,157.15,10.41838065]
[1752091031970,0.04166491,157.25,157.18,10.41838065]
[1752091032174,2.2331,157.29,157.18,10.41838065]
[1752091032375,2.2331,157.29,157.11,12.7261]
[1752091032584,0.04740537,157.23,157.2,10.41838065]
[1752091033073,0.04740537,157.23,157.22,6.3589]
[1752091033577,0.04740537,157.23,157.16,10.41838065]
[1752091033982,12.65148065,157.29,157.18,6.3602]
[1752091034274,12.65148065,157.29,157.12,2.3466]
[1752091034275,0.04535366,157.21,157.13,62.0]
[1752091034476,6.40465366,157.21,157.16,6.3609]
[1752091034674,10.41838065,157.26,157.14,10.41838065]
[1752091034875,2.2331,157.29,157.17,10.41838065]
[1752091035073,0.04034511,157.2,157.19,6.3598]
[1752091035478,2.2331,157.29,157.18,2.1681]
[1752091035679,0.04240328,157.21,157.13,62.0]
[1752091035881,0.04240328,157.21,157.14,2.1681]
[1752091036068,10.41838065,157.24,157.16,6.3612]
[1752091036271,10.41838065,157.24,157.14,2.1681]
[1752091036473,266.1,157.26,157.14,2.1681]
[1752091036474,0.04349878,157.19,157.14,2.1681]
[1752091036674,0.04349878,157.19,157.16,6.361]
[1752091036874,0.04349878,157.19,157.04,12.732]
[1752091037078,6.40389878,157.19,157.05,4.466]
[1752091037377,10.41838065,157.21,157.09,10.41838065]
[1752091037573,0.04293635,157.14,157.09,10.41838065]
[1752091037776,3.635e-05,157.14,157.13,6.3625]
[1752091037979,276.51838065,157.26,157.12,10.41838065]
[1752091038172,266.1,157.26,157.16,10.41838065]
[1752091038375,10.41838065,157.27,157.16,10.41838065]
[1752091038569,6.09636748,157.28,157.16,10.41838065]
[1752091038775,6.3578,157.25,157.17,62.0]
[1752091038975,10.41838065,157.26,157.14,2.1862]
[1752091039173,6.36,157.2,157.16,6.3612]
[1752091039377,10.41838065,157.23,157.13,2.1972]
[1752091039676,10.41838065,157.25,157.14,10.41838065]
[1752091039881,12.71988065,157.28,157.14,10.41838065]
[1752091040078,12.71988065,157.28,157.17,10.41838065]
[1752091040375,6.358,157.25,157.21,6.359]
[1752091040580,3.79486748,157.27,157.17,10.41838065]
[1752091040978,12.71988065,157.28,157.17,10.41838065]
[1752091041381,2.3015,157.28,157.17,10.41838065]
[1752091042077,2.3015,157.28,157.18,62.0]
[1752091042278,2.3015,157.28,157.2,10.41838065]
[1752091042479,2.3015,157.28,157.22,6.3588]
[1752091042480,6.3574,157.26,157.22,6.3588]
[1752091042679,2.3015,157.28,157.2,10.41838065]
[1752091043177,2439.26,157.42,157.23,10.41838065]
[1752091043383,267.7839,157.39,157.26,10.41838065]
[1752091043679,6.3544,157.33,157.28,6.3562]
[1752091043879,10.41838065,157.38,157.26,10.41838065]
[1752091043880,7.61777586,157.32,157.26,10.41838065]
[1752091044081,7.61777586,157.31,157.29,10.41838065]
[1752091044388,7.61777586,157.3,157.29,16.77448065]
[1752091046186,2.3051,157.39,157.29,10.41838065]
[1752091046378,2.3051,157.39,157.33,10.41838065]
[1752091046680,2.2378,157.43,157.25,12.7146]
[1752091046878,4.482,157.43,157.34,10.41838065]
[1752091047480,2.2442,157.43,157.37,10.41838065]
[1752091047878,549.26,157.45,157.4,10.41838065]
[1752091048184,6.3499,157.45,157.4,10.41838065]
[1752091048383,266.602,157.5,157.4,10.41838065]
[1752091048586,4.482,157.5,157.38,10.41838065]
[1752091049488,10.41838065,157.48,157.31,2.3065]
[1752091049691,10.41838065,157.48,157.35,10.41838065]
[1752091050084,4.482,157.5,157.35,10.41838065]
[1752091050292,10.41838065,157.47,157.35,10.41838065]
[1752091050484,10.41838065,157.47,157.39,6.3517]
[1752091050691,6.3503,157.44,157.35,10.41838065]
[1752091051190,10.41838065,157.49,157.39,6.3517]
[1752091051388,4.482,157.5,157.38,10.41838065]
[1752091051583,4.482,157.5,157.41,10.41838065]
[1752091051786,6.3488,157.47,157.41,10.41838065]
[1752091051987,4.482,157.5,157.41,10.41838065]
[1752091052183,14.90038065,157.5,157.4,6.3513]
[1752091052388,14.90038065,157.5,157.37,10.41838065]
[1752091052590,4.482,157.5,157.4,10.41838065]
[1752091052787,6.3483,157.49,157.45,6.3493]
[1752091052987,4.482,157.5,157.37,62.0]
[1752091053188,14.90038065,157.5,157.39,10.41838065]
[1752091053587,10.41838065,157.49,157.39,10.41838065]
[1752091053791,10.41838065,157.49,157.36,2.2336]
[1752091053792,10.41838065,157.49,157.37,10.41838065]
[1752091054090,10.41838065,157.49,157.36,2.2336]
[1752091054488,10.41838065,157.49,157.38,10.41838065]
[1752091054792,4.482,157.5,157.38,10.41838065]
[1752091055884,10.41838065,157.48,157.38,10.41838065]
[1752091056099,10.41838065,157.48,157.36,12.65198065]
[1752091056595,10.41838065,157.45,157.31,12.72488065]
[1752091056799,10.41838065,157.42,157.31,2.3065]
[1752091057088,10.41838065,157.39,157.3,2.3026]
[1752091057489,6.3537,157.35,157.31,6.3552]
[1752091057690,6.3537,157.35,157.3,2.3026]
[1752091057691,10.41838065,157.39,157.3,2.3026]
[1752091058792,10.41838065,157.39,157.28,10.41838065]
[1752091058993,10.41838065,157.39,157.26,15.06308065]
[1752091059195,6.3545,157.33,157.29,6.3557]
[1752091059394,6.3545,157.33,157.26,15.06308065]
[1752091059593,10.41838065,157.36,157.25,559.61838065]
[1752091059792,10.41838065,157.36,157.29,6.3561]
[1752091059993,10.41838065,157.36,157.26,2.2902]
[1752091060493,4.4351,157.41,157.26,2.2902]
[1752091060698,14.85348065,157.41,157.29,10.41838065]
[1752091060901,6.3532,157.37,157.29,10.41838065]
[1752091061112,14.85348065,157.41,157.29,10.41838065]
[1752091061393,14.85348065,157.41,157.34,6.3539]
[1752091061589,14.85348065,157.41,157.29,10.41838065]
[1752091061996,14.85348065,157.41,157.3,10.41838065]
[1752091062193,4.4351,157.41,157.33,10.41838065]
[1752091062798,6.3523,157.39,157.35,6.3533]
[1752091063305,4.4351,157.41,157.3,10.41838065]
[1752091063599,6.3526,157.38,157.3,10.41838065]
[1752091063804,4.4351,157.41,157.3,10.41838065]
[1752091064106,4.4351,157.41,157.29,10.41838065]
[1752091064107,12.19487933,157.41,157.29,10.41838065]
[1752091064300,4.4351,157.41,157.29,10.41838065]
[1752091064500,10.41838065,157.39,157.27,10.41838065]
[1752091065101,10.41838065,157.39,157.32,6.3548]
[1752091065302,7.76394331,157.38,157.32,6.3548]
[1752091065500,7.76394331,157.38,157.27,10.41838065]
[1752091065701,6.3539,157.35,157.31,6.3551]
[1752091065900,10.41838065,157.39,157.27,10.41838065]
[1752091066098,255.6,157.4,157.3,10.41838065]
[1752091066404,7.73117847,157.39,157.27,10.41838065]
[1752091066606,7.73117847,157.38,157.27,10.41838065]
[1752091066804,7.73140332,157.37,157.32,6.3548]
[1752091067002,255.6,157.4,157.27,10.41838065]
[1752091067199,7.7315956,157.39,157.33,6.3543]
[1752091067404,7.7315956,157.38,157.3,10.41838065]
[1752091067600,255.6,157.4,157.3,10.41838065]
[1752091067799,6.3527,157.38,157.34,6.3538]
[1752091068003,14.85348065,157.41,157.3,10.41838065]
[1752091068198,7.73150977,157.4,157.3,10.41838065]
[1752091068405,7.73150977,157.39,157.33,10.41838065]
[1752091068599,7.73150977,157.38,157.33,10.41838065]
[1752091068809,253.92,157.38,157.28,10.41838065]
[1752091069108,10.41838065,157.37,157.26,2.2902]
[1752091069405,6.3549,157.32,157.29,6.3558]
[1752091069611,10.41838065,157.37,157.26,2.2902]
[1752091070214,7.7373878,157.36,157.08,19.04]
[1752091070407,7.73811596,157.35,157.16,10.4066953]
[1752091070613,1.10641274,157.38,157.19,10.4066953]
[1752091070805,1.10641274,157.38,157.17,2.2808]
[1752091070806,6.356,157.3,157.22,10.4066953]
[1752091071003,10.4066953,157.35,157.22,10.4066953]
[1752091071207,10.4066953,157.32,157.2,10.4066953]
[1752091071408,22.8359901,157.31,157.19,10.40422715]
[1752091071612,7.73986295,157.3,157.19,10.40422715]
[1752091071814,4.6919,157.31,157.19,72.40422715]
[1752091072109,18.07545519,157.3,157.19,72.40422715]
[1752091072313,7.67192152,157.29,157.17,2.2808]
[1752091072516,6.3581,157.24,157.17,2.2808]
[1752091072711,10.40422715,157.27,157.17,2.2808]
[1752091072712,7.67295621,157.26,157.17,2.2808]
[1752091073016,7.67385274,157.25,157.14,10.40422715]
[1752091073205,10.40422715,157.24,157.13,2.3337]
[1752091073607,7.67366225,157.23,157.13,2.3337]
[1752091073805,7.67366225,157.22,157.13,2.3337]
[1752091074004,6.3605,157.19,157.11,10.40422715]
[1752091074203,2.2958,157.22,157.07,4.6351]
[1752091074507,6.3602,157.19,157.07,4.6351]
[1752091074708,6.3602,157.19,157.1,10.40422715]
[1752091075104,6.3602,157.19,157.14,6.3618]
[1752091075306,2.2958,157.22,157.08,72.41223924]
[1752091075504,2.2958,157.22,157.08,62.0]
[1752091075704,7.98777749,157.21,157.08,62.0]
[1752091075914,2.2958,157.22,157.11,10.41262292]
[1752091076114,7.98771867,157.21,157.11,10.41262292]
[1752091076310,2.2958,157.22,157.14,10.41262292]
[1752091076705,6.3588,157.23,157.14,10.41262292]
[1752091076911,2.3478,157.26,157.15,2.2848]
[1752091077110,7.984561,157.25,157.15,2.2848]
[1752091077312,6.3585,157.23,157.15,2.2848]
[1752091077508,2.3478,157.26,157.15,2.2848]
[1752091077809,14.34127505,157.25,157.2,6.3593]
[1752091078016,7.98327505,157.24,157.17,10.41262292]
[1752091078215,2.3478,157.26,157.15,12.69742292]
[1752091078416,7.98213397,157.25,157.15,2.2848]
[1752091078614,7.98213397,157.24,157.15,2.2848]
[1752091078815,12.76042292,157.26,157.16,6.3612]
[1752091079014,7.98273035,157.25,157.15,2.2848]
[1752091079220,7.98273035,157.24,157.07,2.3014]
[1752091079516,7.98146267,157.23,157.12,10.41262292]
[1752091079717,7.98146267,157.22,157.12,10.41262292]
[1752091079912,6.3604,157.19,157.12,10.41262292]
[1752091080112,7.98187807,157.23,157.12,10.41262292]
[1752091080316,7.98187807,157.22,157.12,10.41262292]
[1752091080516,12.76042292,157.26,157.15,10.41262292]
[1752091080717,7.98032527,157.25,157.18,10.41262292]
[1752091080920,2.3478,157.26,157.16,10.41262292]
[1752091081217,12.7087,157.34,157.08,12.72112292]
[1752091081218,7.97863516,157.3,157.2,10.40304351]
[1752091081416,4.5534,157.33,157.23,10.40304351]
[1752091081615,18.38029974,157.32,157.12,12.7252]
[1752091081811,6.3577,157.25,157.22,6.3588]
[1752091082018,7.97778638,157.28,157.16,10.40251336]
[1752091082222,10.40251336,157.29,157.16,10.40251336]
[1752091082412,7.98163685,157.28,157.2,10.40410931]
[1752091082611,7.98061601,157.32,157.2,10.40410931]
[1752091082920,7.98061601,157.31,157.26,6.3572]
[1752091083221,7.98061601,157.3,157.2,10.40410931]
[1752091083422,7.98179185,157.29,157.13,2.1622]
[1752091083619,4.5534,157.33,157.19,10.40155121]
[1752091083815,10.40155121,157.31,157.13,2.1622]
[1752091084124,10.40155121,157.28,157.13,2.1622]
[1752091084320,7.92000316,157.27,157.14,62.0]
[1752091084522,6.3603,157.19,157.13,2.1622]
[1752091084824,7.92137956,157.24,157.13,2.1622]
[1752091085016,7.92137956,157.23,157.15,10.40155121]
[1752091085213,7.92137956,157.26,157.18,10.40155121]
[1752091085421,255.76,157.28,157.17,10.40155121]
[1752091086116,6.3577,157.25,157.17,10.40155121]
[1752091086420,255.76,157.28,157.18,10.40155121]
[1752091086611,7.92117562,157.27,157.18,10.40155121]
[1752091086815,255.76,157.28,157.18,10.40155121]
[1752091087014,255.76,157.28,157.13,2.1622]
[1752091087217,7.92283272,157.27,157.18,10.40155121]
[1752091087420,255.76,157.28,157.18,72.40155121]
[1752091087812,7.92294867,157.27,157.13,2.1622]
[1752091088017,10.40155121,157.27,157.15,10.40155121]
[1752091088522,10.40155121,157.31,157.18,10.40155121]
[1752091088725,7.92303924,157.3,157.18,10.40155121]
[1752091089023,7.92303924,157.29,157.18,10.40155121]
[1752091089222,7.92303924,157.29,157.13,2.1622]
[1752091089223,10.40155121,157.31,157.2,10.40155121]
[1752091089418,7.90641804,157.3,157.2,10.40155121]
[1752091089618,7.90641804,157.29,157.22,6.3589]
[1752091089818,10.40155121,157.31,157.22,6.3589]
[1752091090019,7.90654278,157.3,157.22,6.3589]
[1752091090219,7.90654278,157.29,157.21,6.3592]
[1752091090425,7.90654278,157.28,157.21,6.3592]
[1752091090626,10.40155121,157.31,157.21,6.3592]
[1752091090827,7.9067228,157.3,157.19,62.0]
[1752091091023,10.40155121,157.28,157.16,10.40155121]
[1752091091327,7.9067228,157.27,157.19,6.36]
[1752091091529,7.9067228,157.26,157.16,10.40155121]
[1752091091826,10.40155121,157.24,157.13,2.1622]
[1752091092021,10.40155121,157.21,157.09,10.40155121]
[1752091092226,10.40155121,157.21,157.13,6.3622]
[1752091092529,10.40155121,157.21,157.09,10.40155121]
[1752091092732,6.3614,157.16,157.09,10.40155121]
[1752091093531,10.40155121,157.21,157.09,10.40155121]
[1752091094026,10.40155121,157.21,157.09,72.40155121]
[1752091094530,10.40155121,157.18,157.08,2.2034]
[1752091094724,10.40155121,157.15,157.07,6.3647]
[1752091094926,10.40155121,157.15,157.02,12.71895121]
[1752091095129,10.40155121,157.15,157.05,10.40155121]
[1752091095330,10.40155121,157.15,157.08,6.3643]
[1752091095728,14.80615121,157.17,157.05,10.40155121]
[1752091096129,6.3629,157.13,157.05,10.40155121]
[1752091096325,14.80615121,157.17,157.05,10.40155121]
[1752091096626,4.4046,157.17,157.08,10.40155121]
[1752091097532,2.1417,157.17,157.08,10.40155121]
[1752091097829,2.1417,157.17,157.05,10.40155121]
[1752091098029,10.0367918,157.17,157.08,6.3644]
[1752091098224,10.03559923,157.17,157.05,10.40155121]
[1752091098626,10.40155121,157.15,157.05,10.40155121]
[1752091098824,10.40155121,157.15,157.03,62.0]
[1752091099025,10.40155121,157.12,157.02,2.3174]
[1752091099727,10.40155121,157.12,157.02,8.6841]
[1752091099938,2.1518,157.14,157.04,10.40155121]
[1752091100132,2.1518,157.14,157.08,6.3643]
[1752091100332,2.1518,157.14,157.04,10.40155121]
[1752091100533,561.94325121,157.17,157.04,10.40155121]